[Event "8th Menchik Memorial 2024"]
[Site "London"]
[Date "2024.03.22"]
[Round "2.3"]
[White "Hryshchenko, Kamila"]
[Black "Cosman, Andreea-Marioara"]
[Result "1/2-1/2"]
[ECO "B21"]
[WhiteElo "2186"]
[BlackElo "2115"]
[Annotator "RC"]
[PlyCount "99"]
[EventDate "2024.03.22"]
[EventType "tourn"]
[EventCountry "ENG"]
[SourceTitle "playchess.com"]
[Source "ChessBase"]
[SourceQuality "1"]
[TimeControl "5400+30"]

1. e4 {[%emt 0:00:02]} c5 {[%emt 0:05:24]} 2. d3 {[%emt 0:00:21]} Nc6 {[%emt 0:00:09]} 3. Be2 {[%emt 0:00:14]} g6 {[%emt 0:00:12]} 4. f4 {[%emt 0:00:24]} d5 {[%emt 0:00:59]} 5. Nf3 {[%emt 0:00:26]} Nf6 {[%emt 0:00:32]} 6. e5 {[%emt 0:01:09]} Nh5 {[%emt 0:00:08]} 7. O-O {[%emt 0:03:00]} Bh6 {[%emt 0:04:16]} 8. Ne1 {[%emt 0:06:10]} Ng7 {[%emt 0:10:37]} 9. Nc3 {[%emt 0:00:49]} Ne6 {[%emt 0:04:43]} 10. Bg4 {[%emt 0:08:12]} O-O {[%emt 0:07:25]} 11. Ne2 {[%emt 0:06:08]} f6 {[%emt 0:04:32]} 12. exf6 {[%emt 0:12:19]} exf6 {[%emt 0:01:08]} 13. c3 {[%emt 0:03:29]} Qd6 {[%emt 0:05:58]} 14. Bf3 {[%emt 0:05:15]} f5 {[%emt 0:07:07]} 15. a4 {[%emt 0:02:16]} b6 {[%emt 0:01:46]} 16. g3 {[%emt 0:02:14]} Bb7 {[%emt 0:06:39]} 17. Nc2 {[%emt 0:01:52]} Bg7 {[%emt 0:04:48]} 18. Ne3 {[%emt 0:02:42]} d4 {[%emt 0:03:44]} 19. Nc4 {[%emt 0:03:56]} Qd7 {[%emt 0:01:00]} 20. a5 {[%emt 0:06:48]} Nxa5 {[%emt 0:02:55]} 21. Nxa5 {[%emt 0:00:23]} Bxf3 {[%emt 0:01:11]} 22. Rxf3 {[%emt 0:00:05]} bxa5 {[%emt 0:00:10]} 23. c4 {[%emt 0:00:22]} Rab8 {[%emt 0:06:50]} 24. Rxa5 {[%emt 0:00:59]} Rb4 {[%emt 0:00:11]} 25. Rf1 {[%emt 0:04:08]} Qb7 {[%emt 0:02:30]} 26. h3 {[%emt 0:00:52]} Bf6 {[%emt 0:00:39]} 27. Kh2 {[%emt 0:00:48]} Bd8 {[%emt 0:03:04]} 28. Ra2 {[%emt 0:00:44]} Bc7 {[%emt 0:02:09]} 29. Ng1 {[%emt 0:00:30]} g5 {[%emt 0:02:47]} 30. Rf2 {[%emt 0:06:48]} Rf7 {[%emt 0:05:01]} 31. Qh5 {[%emt 0:02:10]} Rb6 {[%emt 0:00:52]} 32. Qf3 {[%emt 0:04:19]} Qxf3 {[%emt 0:00:57]} 33. Rxf3 {[%emt 0:00:03]} g4 {[%emt 0:01:20]} 34. Rf1 {[%emt 0:03:24]} Bb8 {[%emt 0:00:43]} 35. Re1 {[%emt 0:00:52]} Rf6 {[%emt 0:01:19]} 36. Ra3 {[%emt 0:00:29]} Kf7 {[%emt 0:00:25]} 37. b3 {[%emt 0:01:35]} h5 {[%emt 0:00:17]} 38. h4 {[%emt 0:01:49]} Nd8 {[%emt 0:00:21]} 39. Bd2 {[%emt 0:01:45]} Nc6 {[%emt 0:01:47]} 40. Ne2 {[%emt 0:00:06]} Re6 {[%emt 0:00:52]} 41. Nc1 {[%emt 0:00:57]} Bd6 {[%emt 0:01:27]} 42. Rxe6 {[%emt 0:00:22]} Kxe6 {[%emt 0:00:05]} 43. Kg2 {[%emt 0:00:16]} Kd7 {[%emt 0:01:07]} 44. Ra2 {[%emt 0:00:33]} Rb8 {[%emt 0:00:39]} 45. Kf2 {[%emt 0:00:27]} Re8 {[%emt 0:00:38]} 46. Ra4 {[%emt 0:01:29]} Rb8 {[%emt 0:00:44]} 47. Ra2 {[%emt 0:00:25]} Kc7 {[%emt 0:00:24]} 48. Ra6 {[%emt 0:00:18]} Kb7 {[%emt 0:00:49]} 49. Ra4 {[%emt 0:00:05]} Kc7 {[%emt 0:00:52]} 50. Ra6 {[%emt 0:00:05]} 1/2-1/2

[Event "8th Menchik Memorial 2024"]
[Site "London"]
[Date "2024.03.22"]
[Round "2.4"]
[White "Smith, Olivia"]
[Black "Hunt, Harriet V"]
[Result "0-1"]
[ECO "B23"]
[WhiteElo "2054"]
[BlackElo "2307"]
[Annotator "RC"]
[PlyCount "86"]
[EventDate "2024.03.22"]
[EventType "tourn"]
[EventCountry "ENG"]
[SourceTitle "playchess.com"]
[Source "ChessBase"]
[SourceQuality "1"]
[TimeControl "5400+30"]

1. e4 {[%emt 0:00:03]} c5 {[%emt 0:00:10]} 2. Nc3 {[%emt 0:00:14]} a6 {[%emt 0:01:40]} 3. Nge2 {[%emt 0:02:50]} d6 {[%emt 0:04:13]} 4. g3 {[%emt 0:04:10]} Nc6 {[%emt 0:05:24]} 5. Bg2 {[%emt 0:00:36]} g6 {[%emt 0:02:04]} 6. O-O {[%emt 0:03:30]} Bg7 {[%emt 0:00:37]} 7. h3 {[%emt 0:01:50]} e6 {[%emt 0:02:22]} 8. f4 {[%emt 0:01:15]} Nge7 {[%emt 0:05:02]} 9. d3 {[%emt 0:04:12]} O-O {[%emt 0:04:08]} 10. g4 {[%emt 0:02:44]} f5 {[%emt 0:00:42]} 11. Be3 {[%emt 0:18:03]} Nd4 {[%emt 0:02:12]} 12. Ng3 {[%emt 0:02:41]} Kh8 {[%emt 0:07:59]} 13. Nce2 {[%emt 0:05:16]} Nxe2+ {[%emt 0:12:55]} 14. Nxe2 {[%emt 0:02:57]} Bxb2 {[%emt 0:01:31]} 15. Rb1 {[%emt 0:11:21]} Bg7 {[%emt 0:00:23]} 16. c4 {[%emt 0:08:54]} Qc7 {[%emt 0:03:14]} 17. g5 {[%emt 0:07:36]} Rb8 {[%emt 0:03:26]} 18. h4 {[%emt 0:02:55]} Nc6 {[%emt 0:03:00]} 19. e5 {[%emt 0:02:37]} dxe5 {[%emt 0:05:24]} 20. Bxc5 {[%emt 0:00:14]} Re8 {[%emt 0:00:24]} 21. h5 {[%emt 0:05:20]} b6 {[%emt 0:04:09]} 22. Be3 {[%emt 0:01:08]} Bd7 {[%emt 0:05:31]} 23. h6 {[%emt 0:05:03]} Bf8 {[%emt 0:00:07]} 24. d4 {[%emt 0:02:22]} Na5 {[%emt 0:03:42]} 25. fxe5 {[%emt 0:03:02]} Nxc4 {[%emt 0:00:29]} 26. Bf4 {[%emt 0:01:10]} Bc6 {[%emt 0:03:09]} 27. d5 {[%emt 0:00:43]} Bxd5 {[%emt 0:01:18]} 28. Bxd5 {[%emt 0:00:24]} Rbd8 {[%emt 0:02:55]} 29. Qa4 {[%emt 0:00:39]} Qc5+ {[%emt 0:00:32]} 30. Kh2 {[%emt 0:00:47]} exd5 {[%emt 0:01:32]} 31. Qb3 {[%emt 0:00:51]} b5 {[%emt 0:01:06]} 32. Ng3 {[%emt 0:00:31]} Nxe5 {[%emt 0:01:25]} 33. Qb2 {[%emt 0:00:28]} d4 {[%emt 0:00:07]} 34. Rbc1 {[%emt 0:00:15]} Nc4 {[%emt 0:00:29]} 35. Qc2 {[%emt 0:00:44]} Bd6 {[%emt 0:00:32]} 36. a4 {[%emt 0:00:31]} Bxf4 {[%emt 0:00:45]} 37. Rxf4 {[%emt 0:00:11]} Re3 {[%emt 0:00:44]} 38. Rd1 {[%emt 0:00:31]} Qe5 {[%emt 0:00:56]} 39. Qf2 {[%emt 0:00:10]} d3 {[%emt 0:01:49]} 40. axb5 {[%emt 0:00:19]} axb5 {[%emt 0:00:05]} 41. Kh3 {[%emt 0:01:11]} d2 {[%emt 0:00:51]} 42. Rf3 {[%emt 0:00:40]} Qc3 {[%emt 0:02:36]} 43. Rf4 {[%emt 0:00:30]} Nb2 {[%emt 0:00:51]} 0-1

[Event "8th Menchik Memorial 2024"]
[Site "London"]
[Date "2024.03.22"]
[Round "2.5"]
[White "Sivanandan, Bodhana"]
[Black "Subramanian, Anusha"]
[Result "1/2-1/2"]
[ECO "C47"]
[WhiteElo "2088"]
[BlackElo "1997"]
[Annotator "RC"]
[PlyCount "90"]
[EventDate "2024.03.22"]
[EventType "tourn"]
[EventCountry "ENG"]
[SourceTitle "playchess.com"]
[Source "ChessBase"]
[SourceQuality "1"]
[TimeControl "5400+30"]

1. e4 {[%emt 0:00:56]} e5 {[%emt 0:00:07]} 2. Nf3 {[%emt 0:01:29]} Nc6 {[%emt 0:00:02]} 3. Nc3 {[%emt 0:00:40]} Nf6 {[%emt 0:00:02]} 4. d4 {[%emt 0:00:31]} exd4 {[%emt 0:00:09]} 5. Nxd4 {[%emt 0:00:21]} Bb4 {[%emt 0:00:04]} 6. Nxc6 {[%emt 0:00:29]} bxc6 {[%emt 0:00:02]} 7. Bd3 {[%emt 0:00:37]} O-O {[%emt 0:00:07]} 8. O-O {[%emt 0:00:21]} d5 {[%emt 0:00:07]} 9. exd5 {[%emt 0:00:19]} Bxc3 {[%emt 0:00:56]} 10. bxc3 {[%emt 0:00:38]} cxd5 {[%emt 0:00:08]} 11. h3 {[%emt 0:01:35]} Re8 {[%emt 0:01:31]} 12. Bg5 {[%emt 0:01:16]} h6 {[%emt 0:01:21]} 13. Bh4 {[%emt 0:00:50]} c5 {[%emt 0:04:37]} 14. Qf3 {[%emt 0:02:49]} Be6 {[%emt 0:04:26]} 15. Bb5 {[%emt 0:03:04]} Rf8 {[%emt 0:01:43]} 16. Rad1 {[%emt 0:07:17]} Rb8 {[%emt 0:08:54]} 17. c4 {[%emt 0:11:36]} Rb6 {[%emt 0:09:43]} 18. Ba4 {[%emt 0:06:56]} d4 {[%emt 0:03:12]} 19. Bb3 {[%emt 0:05:48]} Qa8 {[%emt 0:02:32]} 20. Qxa8 {[%emt 0:11:44]} Rxa8 {[%emt 0:00:02]} 21. Bxf6 {[%emt 0:00:22]} gxf6 {[%emt 0:00:03]} 22. c3 {[%emt 0:00:59]} dxc3 {[%emt 0:03:13]} 23. Rd3 {[%emt 0:02:38]} Rb4 {[%emt 0:04:29]} 24. Rxc3 {[%emt 0:00:51]} Rd8 {[%emt 0:00:36]} 25. Rfc1 {[%emt 0:03:11]} Rd4 {[%emt 0:02:57]} 26. f3 {[%emt 0:03:04]} a5 {[%emt 0:01:36]} 27. a3 {[%emt 0:00:25]} Rb6 {[%emt 0:00:45]} 28. g4 {[%emt 0:01:33]} Kg7 {[%emt 0:02:04]} 29. Kf2 {[%emt 0:00:45]} f5 {[%emt 0:01:44]} 30. Re1 {[%emt 0:04:52]} Kf6 {[%emt 0:02:15]} 31. Kg3 {[%emt 0:01:48]} Rbd6 {[%emt 0:02:08]} 32. gxf5 {[%emt 0:02:03]} Bxf5 {[%emt 0:00:31]} 33. Re8 {[%emt 0:01:21]} Rd3 {[%emt 0:04:12]} 34. Rxd3 {[%emt 0:00:56]} Rxd3 {[%emt 0:00:08]} 35. Bc2 {[%emt 0:00:45]} Rxa3 {[%emt 0:00:57]} 36. Bxf5 {[%emt 0:00:12]} Kxf5 {[%emt 0:00:02]} 37. Rc8 {[%emt 0:00:19]} Rc3 {[%emt 0:01:07]} 38. Rxc5+ {[%emt 0:00:53]} Kg6 {[%emt 0:00:06]} 39. Rxa5 {[%emt 0:03:11]} Rxc4 {[%emt 0:00:04]} 40. h4 {[%emt 0:01:39]} Rb4 {[%emt 0:00:59]} 41. h5+ {[%emt 0:02:43]} Kg7 {[%emt 0:00:12]} 42. f4 {[%emt 0:00:55]} Rb1 {[%emt 0:00:56]} 43. Kg4 {[%emt 0:01:44]} Rg1+ {[%emt 0:00:32]} 44. Kf5 {[%emt 0:01:13]} Rh1 {[%emt 0:00:17]} 45. Kg4 {[%emt 0:00:34]} Rg1+ {[%emt 0:00:17]} 1/2-1/2

[Event "8th Menchik Memorial 2024"]
[Site "London"]
[Date "2024.03.23"]
[Round "3.1"]
[White "Subramanian, Anusha"]
[Black "Arakhamia-Grant, Ketevan"]
[Result "0-1"]
[ECO "E60"]
[WhiteElo "1997"]
[BlackElo "2290"]
[Annotator "RC"]
[PlyCount "96"]
[EventDate "2024.03.22"]
[EventType "tourn"]
[EventCountry "ENG"]
[SourceTitle "playchess.com"]
[Source "ChessBase"]
[SourceQuality "1"]
[TimeControl "5400+30"]

1. Nf3 {[%emt 0:00:03]} Nf6 {[%emt 0:06:14]} 2. b3 {[%emt 0:00:07]} d6 {[%emt 0:01:12]} 3. d4 {[%emt 0:00:06]} g6 {[%emt 0:00:43]} 4. Bb2 {[%emt 0:00:06]} Bg7 {[%emt 0:00:04]} 5. g3 {[%emt 0:00:08]} O-O {[%emt 0:00:55]} 6. Bg2 {[%emt 0:00:04]} Nbd7 {[%emt 0:01:45]} 7. O-O {[%emt 0:00:09]} a5 {[%emt 0:03:08]} 8. c4 {[%emt 0:00:44]} c6 {[%emt 0:04:39]} 9. Qc2 {[%emt 0:06:35]} Re8 {[%emt 0:04:13]} 10. Rd1 {[%emt 0:04:33]} Qc7 {[%emt 0:06:06]} 11. e4 {[%emt 0:03:16]} e5 {[%emt 0:00:30]} 12. Nc3 {[%emt 0:08:52]} exd4 {[%emt 0:00:37]} 13. Nxd4 {[%emt 0:00:39]} Nc5 {[%emt 0:00:22]} 14. a3 {[%emt 0:07:54]} Qb6 {[%emt 0:01:32]} 15. h3 {[%emt 0:11:05]} Bd7 {[%emt 0:10:19]} 16. Rab1 {[%emt 0:02:42]} Re7 {[%emt 0:03:54]} 17. Kh2 {[%emt 0:07:54]} Rae8 {[%emt 0:00:50]} 18. f3 {[%emt 0:00:48]} Nh5 {[%emt 0:01:26]} 19. Nce2 {[%emt 0:02:34]} f5 {[%emt 0:04:47]} 20. b4 {[%emt 0:03:24]} axb4 {[%emt 0:03:53]} 21. axb4 {[%emt 0:00:53]} Na6 {[%emt 0:12:23]} 22. c5 {[%emt 0:09:22]} dxc5 {[%emt 0:04:41]} 23. bxc5 {[%emt 0:01:14]} Qc7 {[%emt 0:03:21]} 24. Qc4+ {[%emt 0:01:52]} Kh8 {[%emt 0:00:21]} 25. exf5 {[%emt 0:04:13]} gxf5 {[%emt 0:16:44]} 26. f4 {[%emt 0:08:39]} Bc8 {[%emt 0:02:07]} 27. Bf3 {[%emt 0:00:55]} Nf6 {[%emt 0:00:12]} 28. Nc3 {[%emt 0:05:12]} h5 {[%emt 0:03:10]} 29. h4 {[%emt 0:05:04]} Re3 {[%emt 0:02:03]} 30. Bc1 {[%emt 0:00:56]} Rxf3 {[%emt 0:00:43]} 31. Nxf3 {[%emt 0:00:35]} Be6 {[%emt 0:00:06]} 32. Qd3 {[%emt 0:01:56]} Nxc5 {[%emt 0:00:07]} 33. Qc2 {[%emt 0:01:00]} Ng4+ {[%emt 0:01:43]} 34. Kg2 {[%emt 0:00:31]} Qa5 {[%emt 0:00:29]} 35. Bd2 {[%emt 0:00:53]} Qa7 {[%emt 0:01:33]} 36. Ra1 {[%emt 0:00:39]} Qb6 {[%emt 0:00:10]} 37. Nh2 {[%emt 0:02:48]} Nb3 {[%emt 0:00:27]} 38. Nxg4 {[%emt 0:00:30]} Nxa1 {[%emt 0:00:11]} 39. Rxa1 {[%emt 0:00:13]} hxg4 {[%emt 0:00:10]} 40. Rb1 {[%emt 0:00:37]} Qc5 {[%emt 0:00:21]} 41. Qd3 {[%emt 0:00:41]} b5 {[%emt 0:00:34]} 42. h5 {[%emt 0:00:31]} b4 {[%emt 0:00:37]} 43. Na4 {[%emt 0:00:30]} Bd5+ {[%emt 0:01:56]} 44. Kf1 {[%emt 0:00:16]} Qc4 {[%emt 0:00:19]} 45. Qxc4 {[%emt 0:00:37]} Bxc4+ {[%emt 0:00:05]} 46. Kg1 {[%emt 0:00:38]} Bd4+ {[%emt 0:00:06]} 47. Kh1 {[%emt 0:00:28]} Bd5+ {[%emt 0:00:07]} 48. Kh2 {[%emt 0:00:14]} Re2# {[%emt 0:00:05]} 0-1

[Event "8th Menchik Memorial 2024"]
[Site "London"]
[Date "2024.03.23"]
[Round "3.2"]
[White "Hunt, Harriet V"]
[Black "Sivanandan, Bodhana"]
[Result "1-0"]
[ECO "B12"]
[WhiteElo "2307"]
[BlackElo "2088"]
[Annotator "RC"]
[PlyCount "71"]
[EventDate "2024.03.22"]
[EventType "tourn"]
[EventCountry "ENG"]
[SourceTitle "playchess.com"]
[Source "ChessBase"]
[SourceQuality "1"]
[TimeControl "5400+30"]

1. e4 {[%emt 0:00:01]} c6 {[%emt 0:03:00]} 2. d4 {[%emt 0:00:09]} d5 {[%emt 0:00:34]} 3. e5 {[%emt 0:00:09]} Bf5 {[%emt 0:00:46]} 4. Be3 {[%emt 0:00:17]} e6 {[%emt 0:00:49]} 5. Nd2 {[%emt 0:00:19]} Nd7 {[%emt 0:01:58]} 6. c3 {[%emt 0:04:40]} c5 {[%emt 0:10:39]} 7. Ngf3 {[%emt 0:04:35]} Rc8 {[%emt 0:14:07]} 8. Be2 {[%emt 0:06:44]} a6 {[%emt 0:07:41]} 9. O-O {[%emt 0:05:24]} Ne7 {[%emt 0:02:51]} 10. c4 {[%emt 0:27:10]} dxc4 {[%emt 0:17:35]} 11. Nxc4 {[%emt 0:00:32]} Nd5 {[%emt 0:00:38]} 12. Bg5 {[%emt 0:04:28]} Qc7 {[%emt 0:01:31]} 13. Rc1 {[%emt 0:10:46]} Qb8 {[%emt 0:04:39]} 14. Ne3 {[%emt 0:09:15]} Nxe3 {[%emt 0:02:36]} 15. fxe3 {[%emt 0:00:25]} h6 {[%emt 0:02:04]} 16. Bh4 {[%emt 0:00:24]} g5 {[%emt 0:01:46]} 17. Bg3 {[%emt 0:00:08]} Bg7 {[%emt 0:00:38]} 18. h4 {[%emt 0:02:05]} g4 {[%emt 0:02:43]} 19. Nd2 {[%emt 0:00:10]} h5 {[%emt 0:01:30]} 20. Nc4 {[%emt 0:02:26]} Bf8 {[%emt 0:02:48]} 21. Bd3 {[%emt 0:02:08]} b5 {[%emt 0:03:47]} 22. Nd6+ {[%emt 0:01:03]} Bxd6 {[%emt 0:00:50]} 23. exd6 {[%emt 0:01:23]} Bxd3 {[%emt 0:00:29]} 24. Qxd3 {[%emt 0:00:03]} O-O {[%emt 0:02:42]} 25. dxc5 {[%emt 0:01:32]} Rxc5 {[%emt 0:00:53]} 26. Rxc5 {[%emt 0:00:45]} Nxc5 {[%emt 0:00:11]} 27. Qd4 {[%emt 0:00:12]} Nd7 {[%emt 0:00:29]} 28. Rc1 {[%emt 0:03:22]} b4 {[%emt 0:08:09]} 29. Rc7 {[%emt 0:01:50]} Qb5 {[%emt 0:00:13]} 30. b3 {[%emt 0:03:13]} Rd8 {[%emt 0:02:32]} 31. Kh2 {[%emt 0:00:27]} Nf8 {[%emt 0:01:05]} 32. Rc5 {[%emt 0:00:53]} Qf1 {[%emt 0:02:10]} 33. Rxh5 {[%emt 0:00:23]} Ng6 {[%emt 0:00:42]} 34. Qxg4 {[%emt 0:00:20]} Kf8 {[%emt 0:01:33]} 35. Rc5 {[%emt 0:01:28]} Qd3 {[%emt 0:00:46]} 36. Qg5 {[%emt 0:01:55]} 1-0

[Event "8th Menchik Memorial 2024"]
[Site "London"]
[Date "2024.03.23"]
[Round "3.3"]
[White "Cosman, Andreea-Marioara"]
[Black "Smith, Olivia"]
[Result "1-0"]
[ECO "D27"]
[WhiteElo "2115"]
[BlackElo "2054"]
[Annotator "RC"]
[PlyCount "45"]
[EventDate "2024.03.22"]
[EventType "tourn"]
[EventCountry "ENG"]
[SourceTitle "playchess.com"]
[Source "ChessBase"]
[SourceQuality "1"]
[TimeControl "5400+30"]

1. d4 {[%emt 0:00:04]} d5 {[%emt 0:00:10]} 2. c4 {[%emt 0:00:44]} dxc4 {[%emt 0:00:08]} 3. Nf3 {[%emt 0:00:06]} Nf6 {[%emt 0:00:09]} 4. e3 {[%emt 0:00:06]} e6 {[%emt 0:00:13]} 5. Bxc4 {[%emt 0:00:07]} a6 {[%emt 0:00:11]} 6. O-O {[%emt 0:00:42]} c5 {[%emt 0:00:14]} 7. Bb3 {[%emt 0:00:09]} Nc6 {[%emt 0:06:59]} 8. Nc3 {[%emt 0:00:18]} Be7 {[%emt 0:05:02]} 9. dxc5 {[%emt 0:00:41]} Qxd1 {[%emt 0:00:30]} 10. Rxd1 {[%emt 0:00:07]} Bxc5 {[%emt 0:00:35]} 11. Bd2 {[%emt 0:00:06]} O-O {[%emt 0:01:17]} 12. Be1 {[%emt 0:01:42]} e5 {[%emt 0:07:09]} 13. Rac1 {[%emt 0:07:59]} e4 {[%emt 0:07:43]} 14. Nd4 {[%emt 0:06:58]} Bg4 {[%emt 0:10:19]} 15. Nxc6 {[%emt 0:02:07]} Bxd1 {[%emt 0:02:35]} 16. Nxd1 {[%emt 0:00:46]} Bd6 {[%emt 0:03:14]} 17. Nd4 {[%emt 0:08:21]} Rac8 {[%emt 0:05:29]} 18. Nc3 {[%emt 0:01:38]} Rc5 {[%emt 0:07:58]} 19. Rd1 {[%emt 0:04:34]} Re8 {[%emt 0:03:56]} 20. Bc2 {[%emt 0:07:54]} h6 {[%emt 0:01:38]} 21. Nb3 {[%emt 0:00:37]} Rc6 {[%emt 0:01:16]} 22. Na5 {[%emt 0:00:12]} Rb6 {[%emt 0:02:39]} 23. Nc4 {[%emt 0:00:07]} 1-0

[Event "8th Menchik Memorial 2024"]
[Site "London"]
[Date "2024.03.23"]
[Round "3.4"]
[White "Garcia Martin, Marta"]
[Black "Hryshchenko, Kamila"]
[Result "1-0"]
[ECO "C41"]
[WhiteElo "2356"]
[BlackElo "2186"]
[Annotator "RC"]
[PlyCount "87"]
[EventDate "2024.03.22"]
[EventType "tourn"]
[EventCountry "ENG"]
[SourceTitle "playchess.com"]
[Source "ChessBase"]
[SourceQuality "1"]
[TimeControl "5400+30"]

1. e4 {[%emt 0:03:46]} d6 {[%emt 0:00:10]} 2. d4 {[%emt 0:00:07]} Nf6 {[%emt 0:00:14]} 3. Nc3 {[%emt 0:00:09]} e5 {[%emt 0:00:16]} 4. Nf3 {[%emt 0:01:42]} Nbd7 {[%emt 0:00:06]} 5. Bc4 {[%emt 0:00:35]} Be7 {[%emt 0:00:18]} 6. O-O {[%emt 0:00:41]} Nb6 {[%emt 0:01:20]} 7. Be2 {[%emt 0:10:03]} exd4 {[%emt 0:00:36]} 8. Nxd4 {[%emt 0:02:31]} O-O {[%emt 0:00:20]} 9. a4 {[%emt 0:00:49]} c5 {[%emt 0:04:24]} 10. Nf3 {[%emt 0:01:09]} Bg4 {[%emt 0:01:54]} 11. a5 {[%emt 0:06:47]} Nbd7 {[%emt 0:01:32]} 12. h3 {[%emt 0:20:22]} Bxf3 {[%emt 0:01:53]} 13. Bxf3 {[%emt 0:00:04]} Ne5 {[%emt 0:02:32]} 14. a6 {[%emt 0:00:48]} Qb6 {[%emt 0:04:45]} 15. Be2 {[%emt 0:04:59]} Rab8 {[%emt 0:03:54]} 16. Nd5 {[%emt 0:06:43]} Qd8 {[%emt 0:06:14]} 17. Nxf6+ {[%emt 0:05:47]} Bxf6 {[%emt 0:00:08]} 18. Qd5 {[%emt 0:03:17]} b5 {[%emt 0:07:26]} 19. Rd1 {[%emt 0:02:19]} Rb6 {[%emt 0:06:44]} 20. c3 {[%emt 0:03:31]} b4 {[%emt 0:15:46]} 21. Be3 {[%emt 0:09:12]} bxc3 {[%emt 0:10:51]} 22. bxc3 {[%emt 0:00:05]} Qb8 {[%emt 0:01:01]} 23. Rac1 {[%emt 0:02:10]} Re8 {[%emt 0:03:27]} 24. f4 {[%emt 0:03:31]} Ng6 {[%emt 0:00:50]} 25. Bc4 {[%emt 0:00:17]} Rf8 {[%emt 0:08:23]} 26. Kh1 {[%emt 0:03:55]} Ne7 {[%emt 0:05:46]} 27. Qd3 {[%emt 0:00:14]} Qc7 {[%emt 0:00:30]} 28. Rb1 {[%emt 0:00:20]} Nc8 {[%emt 0:04:32]} 29. Bb5 {[%emt 0:02:45]} Rb8 {[%emt 0:00:20]} 30. g4 {[%emt 0:03:19]} h6 {[%emt 0:00:56]} 31. Rg1 {[%emt 0:03:19]} Nb6 {[%emt 0:03:42]} 32. g5 {[%emt 0:00:21]} hxg5 {[%emt 0:00:05]} 33. e5 {[%emt 0:00:30]} dxe5 {[%emt 0:01:19]} 34. fxg5 {[%emt 0:00:04]} e4 {[%emt 0:03:10]} 35. gxf6 {[%emt 0:01:03]} exd3 {[%emt 0:01:06]} 36. Rxg7+ {[%emt 0:00:06]} Kh8 {[%emt 0:00:04]} 37. Rg4 {[%emt 0:00:36]} Qg3 {[%emt 0:00:45]} 38. Rxg3 {[%emt 0:00:16]} Nd5 {[%emt 0:00:30]} 39. Rg4 {[%emt 0:01:09]} Nxf6 {[%emt 0:00:25]} 40. Rh4+ {[%emt 0:00:06]} Nh7 {[%emt 0:00:03]} 41. Bxc5 {[%emt 0:00:34]} Rfd8 {[%emt 0:01:13]} 42. Bd4+ {[%emt 0:00:11]} Kg8 {[%emt 0:02:00]} 43. Rg1+ {[%emt 0:00:11]} Kf8 {[%emt 0:00:00]} 44. Bc5+ {[%emt 0:00:05]} 1-0

[Event "8th Menchik Memorial 2024"]
[Site "London"]
[Date "2024.03.23"]
[Round "3.5"]
[White "Navrotescu, Andreea"]
[Black "Steil-Antoni, Fiona"]
[Result "1-0"]
[ECO "A21"]
[WhiteElo "2200"]
[BlackElo "2154"]
[Annotator "RC"]
[PlyCount "57"]
[EventDate "2024.03.22"]
[EventType "tourn"]
[EventCountry "ENG"]
[SourceTitle "playchess.com"]
[Source "ChessBase"]
[SourceQuality "1"]
[TimeControl "5400+30"]

1. c4 {[%emt 0:00:03]} e5 {[%emt 0:03:35]} 2. Nc3 {[%emt 0:00:17]} Bb4 {[%emt 0:00:23]} 3. Qb3 {[%emt 0:00:19]} Nc6 {[%emt 0:02:08]} 4. e3 {[%emt 0:00:25]} Nf6 {[%emt 0:03:40]} 5. Nge2 {[%emt 0:05:27]} O-O {[%emt 0:01:44]} 6. Nd5 {[%emt 0:04:17]} Bc5 {[%emt 0:02:55]} 7. Nec3 {[%emt 0:02:20]} a6 {[%emt 0:01:17]} 8. Nxf6+ {[%emt 0:00:58]} Qxf6 {[%emt 0:02:17]} 9. Ne4 {[%emt 0:00:38]} Qe7 {[%emt 0:00:12]} 10. Nxc5 {[%emt 0:00:41]} Qxc5 {[%emt 0:00:03]} 11. Qc3 {[%emt 0:05:54]} d6 {[%emt 0:03:00]} 12. a3 {[%emt 0:02:51]} a5 {[%emt 0:00:35]} 13. b4 {[%emt 0:01:18]} Qa7 {[%emt 0:04:15]} 14. Bb2 {[%emt 0:01:12]} Bf5 {[%emt 0:08:04]} 15. b5 {[%emt 0:04:20]} Ne7 {[%emt 0:01:32]} 16. Be2 {[%emt 0:05:17]} f6 {[%emt 0:02:06]} 17. h4 {[%emt 0:08:51]} Kh8 {[%emt 0:03:33]} 18. g4 {[%emt 0:00:48]} Be6 {[%emt 0:01:34]} 19. g5 {[%emt 0:00:31]} c5 {[%emt 0:13:44]} 20. h5 {[%emt 0:09:14]} b6 {[%emt 0:03:06]} 21. h6 {[%emt 0:00:42]} Ng6 {[%emt 0:12:44]} 22. hxg7+ {[%emt 0:02:09]} Qxg7 {[%emt 0:00:40]} 23. gxf6 {[%emt 0:01:45]} Qxf6 {[%emt 0:01:40]} 24. f4 {[%emt 0:01:12]} Rae8 {[%emt 0:05:30]} 25. O-O-O {[%emt 0:00:50]} Bf5 {[%emt 0:00:47]} 26. Rdf1 {[%emt 0:02:55]} Qe6 {[%emt 0:05:44]} 27. Bf3 {[%emt 0:05:51]} Qe7 {[%emt 0:05:29]} 28. Rh5 {[%emt 0:04:18]} Qd7 {[%emt 0:05:16]} 29. Bc6 {[%emt 0:00:43]} 1-0